bitfinex-derivatives/quotes_ETHF0:USTF0_20250804
["timestamp","ask_amount","ask_price","bid_price","bid_amount"]
[1754337486965,1.28221,3673.3,3673.2,1.7396]
[1754337487556,0.399,3673.8,3673.7,0.3986]
[1754337487759,1.52353,3673.8,3673.7,0.6932]
[1754337487960,1.52353,3673.8,3673.7,1.7396]
[1754337488161,0.54443,3673.9,3673.8,0.7395]
[1754337488362,0.54443,3673.9,3673.8,1.7396]
[1754337488567,0.54441,3674.0,3673.8,2.28402]
[1754337488867,0.54441,3674.0,3673.9,1.7396]
[1754337489164,0.286,3674.1,3674.0,1.7396]
[1754337489369,0.54438,3674.2,3674.1,1.7396]
[1754337489865,1.23432228,3674.5,3674.4,1.7396]
[1754337490063,0.68998228,3674.6,3674.5,1.83903]
[1754337490266,0.68998228,3674.7,3674.6,1.7396]
[1754337490863,1.82668228,3674.7,3674.6,1.7396]
[1754337491068,2.12078228,3674.7,3674.6,1.7396]
[1754337491257,2.12078228,3674.7,3674.6,0.4885]
[1754337491463,0.9365,3674.5,3674.4,0.4885]
[1754337491659,1.97513,3674.5,3674.4,0.4885]
[1754337491871,1.20439,3674.1,3674.0,0.2946]
[1754337492166,1.97519,3674.1,3674.0,0.4885]
[1754337492372,1.97519,3674.1,3674.0,0.2946]
[1754337492571,2.10439,3674.1,3674.0,0.2946]
[1754337493066,2.79437228,3674.1,3674.0,0.2946]
[1754337493961,0.9791,3673.6,3673.5,1.0001]
[1754337494161,0.685,3673.6,3673.5,0.485]
[1754337494467,0.685,3673.4,3673.3,4.2079]
[1754337494766,1.4308,3673.4,3673.3,4.9474]
[1754337495567,0.946,3673.4,3673.3,4.9474]
[1754337495959,0.4517,3673.4,3673.3,4.9474]
[1754337496166,1.47279,3674.1,3674.0,0.4885]
[1754337496367,1.47285,3673.7,3673.6,1.7396]
[1754337496562,0.83045,3673.7,3673.6,1.7396]
[1754337497270,1.68115,3673.7,3673.6,1.7396]
[1754337497466,1.97525,3673.7,3673.6,0.6932]
[1754337497664,2.10465,3673.7,3673.6,0.4885]
[1754337498268,2.10465,3673.7,3673.6,0.2946]
[1754337498469,1.97529,3673.4,3673.3,0.2946]
[1754337498665,1.97529,3673.4,3672.9,0.2946]
[1754337498666,1.97535,3673.0,3672.9,0.2946]
[1754337499069,1.97535,3673.0,3672.9,0.4885]
[1754337499271,1.97535,3673.0,3672.9,1.2947]
[1754337499463,1.2296,3672.7,3672.6,0.9492]
[1754337499665,1.9754,3672.7,3672.6,0.4885]
[1754337500065,1.9754,3672.7,3672.6,1.2947]
[1754337500269,1.9754,3672.7,3672.6,1.7396]
[1754337500866,0.8306,3672.7,3672.6,1.7396]
[1754337501268,1.9754,3672.7,3672.6,1.7396]
[1754337501471,1.97545,3672.3,3672.2,1.7396]
[1754337501764,0.54468,3672.1,3672.0,2.73677194]
[1754337501965,1.22968,3672.1,3672.0,0.2946]
[1754337502364,1.35911,3671.9,3671.8,2.44217194]
[1754337502562,2.10494,3671.7,3671.6,2.44217194]
[1754337502771,1.4308,3671.6,3671.5,2.44217194]
[1754337502963,1.5602,3671.6,3671.5,2.44217194]
[1754337503370,2.10497,3671.5,3671.4,2.44217194]
[1754337503572,0.685,3671.3,3671.2,0.5043]
[1754337503771,1.4308,3671.3,3671.2,0.709]
[1754337504073,1.4308,3671.3,3671.2,1.0001]
[1754337504271,1.4308,3671.3,3671.2,1.7396]
[1754337504570,1.97568,3670.8,3670.7,0.7989]
[1754337505271,2.23741,3670.8,3670.2,0.2946]
[1754337505469,1.97575,3670.3,3670.2,1.2947]
[1754337505977,1.97575,3670.3,3670.2,0.2946]
[1754337506166,1.97575,3670.3,3670.0,0.4449]
[1754337506167,1.4308,3670.3,3669.9,1.27543979]
[1754337506375,1.9412,3670.0,3669.9,0.98093979]
[1754337506571,2.0709,3670.0,3669.9,0.98093979]
[1754337507074,1.21563,3669.1,3669.0,3.86837194]
[1754337507376,0.7257,3669.1,3669.0,0.3108]
[1754337507569,0.8554,3669.1,3668.7,0.4358]
[1754337507770,3.9335,3668.9,3668.8,0.3108]
[1754337508375,1.27088,3668.8,3668.3,0.98104]
[1754337508574,0.54521,3668.6,3668.4,0.2945]
[1754337508880,0.7257,3668.5,3668.4,0.2945]
[1754337509073,3.2078,3668.9,3668.8,0.7303]
[1754337509267,3.2078,3668.9,3668.8,1.0411]
[1754337509678,3.6412,3668.9,3668.8,1.0411]
[1754337510477,3.2078,3669.3,3669.2,1.58621]
[1754337510677,0.4334,3669.5,3669.2,1.0411]
[1754337510874,0.4334,3669.4,3669.3,1.0411]
[1754337511377,3.2078,3670.1,3669.2,1.0411]
[1754337511573,3.2078,3670.1,3669.9,0.3108]
[1754337511878,3.6412,3670.1,3670.0,1.0411]
[1754337512073,3.9335,3670.1,3670.0,1.0411]
[1754337512278,4.47848,3670.1,3670.0,1.0411]
[1754337512783,4.47848,3670.1,3669.1,4.5706]
[1754337512784,0.54501,3669.9,3669.4,0.3108]
[1754337513083,0.54505,3669.7,3669.4,0.7303]
[1754337513281,0.1297,3669.9,3669.4,0.7303]
[1754337513282,0.7257,3669.5,3669.4,0.2945]
[1754337513776,0.7257,3669.4,3669.2,0.3108]
[1754337513981,1.2708,3669.3,3669.2,0.3108]
[1754337514182,4.4786,3669.3,3669.2,0.3108]
[1754337514677,1.3629,3669.0,3668.3,1.0411]
[1754337514874,0.54523,3668.5,3668.4,0.3108]
[1754337515080,1.27093,3668.5,3668.4,0.3108]
[1754337515282,1.27093,3668.5,3668.4,1.0411]
[1754337515283,0.4334,3668.5,3668.4,1.0411]
[1754337516584,3.2078,3668.8,3668.7,1.0411]
[1754337517575,3.6412,3668.8,3668.7,1.0411]
[1754337517887,3.9335,3668.8,3668.7,0.3108]
[1754337518279,3.9335,3668.8,3668.7,0.6053]
[1754337519393,3.2078,3668.8,3668.7,1.0411]
[1754337520596,0.54517,3668.9,3668.8,1.0411]
[1754337521190,0.54515,3669.0,3668.9,0.4358]
[1754337521390,0.54515,3669.0,3668.9,1.0411]
[1754337521589,0.54522,3668.6,3668.5,0.7466]
[1754337521782,0.54522,3668.6,3668.5,1.0411]
[1754337521984,0.97862,3668.6,3668.5,1.0411]
[1754337522894,0.97862,3668.6,3668.5,1.7207]
[1754337523295,0.5452,3668.7,3668.6,1.7207]
[1754337523689,1.4599,3668.7,3668.6,1.7207]
[1754337523885,1.9414,3668.7,3668.6,1.4262]
[1754337524091,0.83195,3668.4,3668.3,0.3108]
[1754337524290,1.94145,3668.4,3668.3,0.7987]
[1754337524490,5.14925,3668.4,3668.3,0.5042]
[1754337525193,1.21578,3668.1,3668.0,1.2345]
[1754337525393,1.94148,3668.1,3668.0,1.2345]
[1754337525798,1.94148,3668.1,3668.0,1.7207]
[1754337526190,0.54531,3667.9,3667.7,0.54533]
[1754337526397,0.4334,3668.0,3667.7,1.7207]
[1754337526597,0.4334,3668.0,3667.6,3.2078]
[1754337526598,0.6705,3667.9,3667.8,2.26602]
[1754337526796,0.4813,3667.9,3667.8,2.26602]
[1754337526995,0.2867,3667.9,3667.8,2.26602]
[1754337527292,1.94151,3668.0,3667.9,1.7207]
[1754337527894,0.54529,3668.1,3668.0,1.7207]
[1754337528591,1.45459,3668.1,3668.0,1.7207]
[1754337528793,1.94149,3668.1,3668.0,0.9904]
[1754337528995,1.94149,3668.1,3668.0,0.3108]
[1754337529599,2.07119,3668.1,3668.0,0.3108]
[1754337529794,1.94149,3668.1,3668.0,0.3108]
[1754337529994,1.94149,3668.1,3668.0,1.7207]
[1754337530391,1.94149,3668.1,3668.0,0.5042]
[1754337530593,0.54537,3667.5,3667.4,1.2849]
[1754337530899,0.54531,3668.0,3667.8,1.7207]
[1754337531099,0.54531,3668.0,3667.9,1.7207]
[1754337531295,0.2923,3668.8,3668.6,0.6796]
[1754337531501,1.36275,3669.4,3668.9,1.0411]
[1754337532008,0.54511,3669.2,3669.1,0.4358]
[1754337532198,1.27081,3669.2,3669.1,1.0411]
[1754337532502,1.27092,3668.5,3668.4,0.6053]
[1754337532696,4.18642,3668.5,3668.4,1.0411]
[1754337532895,0.97862,3668.5,3668.4,0.3108]
[1754337533100,1.27092,3668.5,3668.4,0.3108]
[1754337533302,1.95756809,3668.5,3668.4,0.3108]
[1754337533610,0.7257,3668.2,3668.1,0.7303]
[1754337533796,0.54531,3667.9,3667.8,3.9381]
[1754337534100,1.27101,3667.9,3667.8,1.0411]
[1754337534704,0.97871,3667.9,3667.8,1.0411]
[1754337534903,0.54531,3667.9,3667.8,1.0411]
[1754337536209,0.54527,3668.2,3668.0,0.3072]
[1754337536506,0.54526,3668.2,3668.1,1.0344]
[1754337537904,0.54526,3668.2,3668.1,1.7267]
[1754337540305,0.54531,3667.9,3667.8,3.2078]
[1754337540505,1.69135,3667.6,3667.5,0.6923]
[1754337540807,1.98895,3667.6,3667.5,0.1888]
[1754337541014,1.98895,3667.6,3667.5,0.3022]
[1754337541410,2.11905,3667.6,3666.0,1.36395]
[1754337541610,1.48893,3667.1,3667.0,1.7267]
[1754337541814,0.54537,3667.5,3667.4,0.6923]
[1754337542014,0.54537,3667.5,3667.4,1.7267]
[1754337542416,1.98897,3667.5,3667.4,0.6828]
[1754337542717,1.98897,3667.5,3667.4,0.3022]
[1754337543211,1.98897,3667.5,3667.0,0.425]
[1754337543212,1.24723,3667.1,3667.0,0.3022]
[1754337543421,1.98903,3667.1,3667.0,0.494]
[1754337543618,1.24723,3667.1,3667.0,0.3022]
[1754337543911,1.24723,3667.1,3667.0,0.9945]
[1754337543912,0.7018,3667.1,3667.0,0.9945]
[1754337544116,0.54542,3667.2,3667.1,0.99]
[1754337544317,1.98904,3667.0,3666.9,0.98174232]
[1754337544513,4.62514,3667.0,3666.9,0.98174232]
[1754337544816,23.46514,3667.0,3666.9,0.26454232]
[1754337545810,4.49504,3667.0,3666.9,0.56674232]
[1754337546006,4.19744,3667.0,3666.9,1.29894232]
[1754337546207,39.255,3667.5,3667.0,0.3022]
[1754337546415,0.84303,3667.1,3667.0,0.3022]
[1754337547218,0.84303,3667.1,3667.0,1.0344]
[1754337547413,19.41041,3667.3,3667.1,0.3022]
[1754337547613,19.70801,3667.3,3667.2,0.3022]
[1754337547815,19.70801,3667.3,3666.9,0.26454232]
[1754337547816,3.5054,3668.1,3667.3,0.3022]
[1754337548009,0.54535,3667.7,3667.4,0.54537]
[1754337548314,0.5453,3668.0,3667.7,0.7322]
[1754337548511,0.54529,3668.0,3667.8,1.0344]
[1754337548817,0.2976,3668.0,3667.3,0.54539]
[1754337549013,0.2976,3668.0,3667.4,1.0344]
[1754337549219,0.2976,3668.5,3667.9,0.7322]
[1754337549411,0.21880483,3668.8,3668.1,0.7322]
[1754337549412,3.2078,3668.8,3668.1,0.7322]
[1754337549615,3.2078,3668.8,3668.3,0.425]
[1754337549913,0.5452,3668.6,3668.5,0.3022]
[1754337550115,0.54527,3668.2,3667.9,1.0344]
[1754337550322,0.54527,3668.2,3668.0,0.3022]
[1754337550616,0.2976,3668.0,3667.9,1.57971]
[1754337550813,0.5453,3668.0,3667.8,3.2078]
[1754337551012,3.2078,3668.7,3667.8,3.2078]
[1754337551212,3.2078,3668.3,3667.4,3.2078]
[1754337551413,0.2976,3667.9,3667.7,0.85254]
[1754337551619,3.2078,3668.3,3667.9,1.0344]
[1754337551620,0.54529,3668.1,3667.9,1.0344]
[1754337551919,3.2078,3668.3,3668.2,1.0344]
[1754337552418,0.54525,3668.4,3668.2,1.0344]
[1754337552621,0.97410998,3669.3,3668.8,0.3022]
[1754337552822,0.67827184,3669.3,3669.2,0.425]
[1754337553120,1.22334184,3669.5,3669.3,0.6094]
[1754337553423,0.54507,3669.5,3669.4,1.0344]
[1754337553617,0.54506,3669.6,3669.2,0.54511]
[1754337553815,0.67827184,3669.7,3669.6,0.7322]
[1754337554120,0.67827184,3669.7,3669.6,1.0344]
[1754337554322,0.67827184,3669.9,3669.7,0.54504]
[1754337554514,0.97410998,3670.0,3669.9,1.57941]
[1754337554515,0.1234926,3670.0,3669.9,1.57941]
[1754337554714,0.67896753,3670.0,3669.9,1.0344]
[1754337554919,0.67896753,3670.1,3670.0,1.0344]
[1754337555117,1.0324966,3670.1,3670.0,1.0344]
[1754337555421,1.64503606,3670.1,3670.0,0.7272]
[1754337555618,0.54503,3669.8,3669.7,0.6094]
[1754337555820,0.2976,3669.8,3669.7,1.0344]
[1754337556020,1.32763905,3670.1,3669.7,1.0344]
[1754337556021,0.67896753,3669.9,3669.8,0.6094]
[1754337556221,0.67896753,3670.0,3669.8,0.54501]
[1754337556520,0.80248981,3670.1,3670.0,1.1544]
[1754337556721,0.12352228,3670.1,3670.0,1.0344]
[1754337557021,0.54498,3670.2,3670.0,1.0344]
[1754337557022,0.67896753,3670.2,3670.1,0.7322]
[1754337557218,0.67896753,3670.2,3670.1,1.0344]
[1754337557418,0.80248981,3670.3,3670.2,1.0344]
[1754337557911,0.80248981,3670.3,3670.2,0.3022]
[1754337558115,1.03271209,3670.3,3670.2,1.0344]
[1754337558311,0.65134456,3670.3,3670.2,0.3022]
[1754337558519,0.97656753,3670.3,3670.2,0.3022]
[1754337558716,0.67896753,3670.3,3669.9,0.3022]
[1754337558921,0.84258,3670.1,3670.0,0.3022]
[1754337559116,0.54504,3669.7,3669.6,3.2078]
[1754337559319,0.84264,3669.7,3669.6,3.515]
[1754337559516,0.54509,3669.4,3669.3,0.425]
[1754337559723,0.54509,3669.4,3669.3,1.0344]
[1754337559921,0.54509,3669.4,3669.3,0.3022]
[1754337560224,0.2976,3668.9,3668.8,0.3022]
[1754337560412,0.2976,3668.7,3668.0,1.15469]
[1754337560615,0.2976,3668.7,3668.1,0.3022]
[1754337560822,0.2976,3668.7,3668.1,1.0344]
[1754337560823,0.54526,3668.2,3668.1,1.0344]
[1754337563125,0.54524,3668.4,3668.0,0.54528]
[1754337563321,3.2078,3669.5,3668.5,0.7272]
[1754337563522,3.2078,3669.5,3669.0,0.3022]
[1754337563723,0.54513,3669.1,3669.0,0.425]
[1754337563921,0.2976,3668.8,3668.6,0.3072]
[1754337564123,3.4401,3668.7,3668.0,0.7322]
[1754337564322,0.5299,3668.1,3668.0,0.7272]
[1754337564522,0.54531,3667.9,3667.5,0.425]
[1754337564722,0.5299,3667.8,3667.6,0.54535]
[1754337564929,0.5299,3667.8,3667.7,0.7272]
[1754337565221,0.2976,3668.2,3668.0,0.54529]
[1754337565427,3.2078,3668.3,3668.1,0.54527]
[1754337565629,3.2078,3668.3,3668.2,1.0425]
[1754337565827,3.7522,3668.3,3668.2,0.301]
[1754337566225,0.54521,3668.6,3668.3,0.54525]
[1754337566621,0.54521,3668.6,3668.0,3.2078]
[1754337566622,0.54523,3668.4,3668.2,1.0425]
[1754337566821,0.54523,3668.5,3668.3,1.58775]
[1754337567125,0.5444,3668.8,3668.0,3.2078]
[1754337567326,0.54518,3668.8,3668.5,0.54522]
[1754337567531,0.54519,3668.8,3668.5,0.54521]
[1754337567824,0.54516,3668.9,3668.7,1.0425]
[1754337568029,3.2078,3669.1,3668.9,1.29815]
[1754337568230,0.54519,3668.8,3668.7,0.452]
[1754337568529,3.2078,3669.1,3668.4,3.2078]
[1754337568730,0.5452,3669.0,3668.8,0.2895]
[1754337568931,1.09034,3669.0,3668.9,0.753]
[1754337569425,0.85788,3669.5,3669.1,0.54513]
[1754337569630,0.5451,3669.3,3669.2,0.7415]
[1754337569827,0.54524,3668.4,3667.6,1.36336]
[1754337570033,0.54532,3667.9,3667.6,3.2078]
[1754337570330,0.3128,3668.0,3667.9,0.753]
[1754337570531,1.09051,3668.0,3667.9,0.301]
[1754337571533,0.54529,3668.1,3668.0,1.0425]
[1754337571834,0.5452,3667.4,3667.3,0.753]
[1754337572127,0.5452,3667.4,3667.3,1.0425]
[1754337572325,0.3128,3667.9,3667.0,1.36361]
[1754337572637,0.3128,3667.9,3667.6,0.2895]
[1754337572829,0.54529,3668.1,3667.8,3.2078]
[1754337573135,0.85809,3668.1,3668.0,0.2895]
[1754337573328,0.3128,3669.4,3668.0,0.7415]
[1754337573530,0.35074919,3669.5,3669.4,0.2895]
[1754337573728,0.66874867,3669.5,3669.4,1.0425]
[1754337573933,1.21395867,3669.5,3669.4,1.0425]
[1754337574434,1.09027,3669.5,3669.4,0.753]
[1754337574633,1.21397308,3669.5,3669.4,0.753]
[1754337575140,1.90766,3670.1,3669.7,0.452]
[1754337575326,0.66371468,3670.0,3669.8,0.7415]
[1754337575634,1.26378926,3670.2,3669.6,1.28656]
[1754337575826,1.03138926,3670.2,3669.5,1.0425]
[1754337576036,0.54502,3669.9,3669.7,1.0425]
[1754337576225,0.5452,3669.9,3669.4,0.452]
[1754337576535,0.5452,3669.9,3669.6,1.0425]
[1754337576536,0.54504,3669.7,3669.6,1.0425]
[1754337576736,1.09024,3669.7,3669.6,0.301]
[1754337577431,0.85784,3669.7,3669.6,0.753]
[1754337577632,1.09024,3669.7,3669.6,0.301]
[1754337577836,1.09024,3669.7,3669.6,0.753]
[1754337578033,1.09024,3669.7,3669.6,0.301]
[1754337578333,1.34921811,3669.8,3669.4,0.54508]
[1754337578541,0.54503,3669.8,3669.7,0.452]
[1754337578832,0.54503,3669.8,3669.7,0.753]
[1754337578833,1.09023,3669.8,3669.7,0.753]
[1754337579034,1.09023,3669.8,3669.7,0.301]
[1754337579232,0.5452,3669.8,3669.7,0.301]
[1754337579433,0.5452,3669.8,3669.7,0.753]
[1754337579938,0.85783,3669.8,3669.7,0.753]
[1754337580139,0.54503,3669.8,3669.7,1.0425]
[1754337580338,1.0314318,3670.0,3669.9,1.0425]
[1754337580538,0.545,3670.1,3670.0,1.0425]
[1754337580844,0.3128,3669.8,3669.7,0.84604]
[1754337581040,0.35096362,3670.2,3669.6,3.2078]
[1754337581337,1.53823458,3670.3,3669.7,0.452]
[1754337581338,0.3128,3670.1,3669.7,0.452]
[1754337581533,0.54498,3670.1,3669.9,0.301]
[1754337581740,0.54503,3669.8,3669.7,0.452]
[1754337581929,0.54502,3669.9,3669.7,0.452]
[1754337582136,0.5452,3669.8,3669.7,0.452]
[1754337582348,0.5452,3669.8,3669.7,0.301]
[1754337582650,1.09023,3669.8,3669.7,0.301]
[1754337583248,0.54501,3670.0,3669.7,0.54503]
[1754337583441,0.77739,3670.1,3669.9,0.7415]
[1754337583642,0.77739,3670.1,3670.0,0.301]
[1754337584054,0.2324,3670.1,3670.0,0.301]
[1754337584255,1.09018,3670.2,3670.1,0.753]
[1754337584453,0.22229679,3670.2,3670.1,0.301]
[1754337584751,3.2078,3670.9,3670.0,3.75278]
[1754337584752,0.12369021,3670.5,3670.4,1.0425]
[1754337585051,1.43030998,3670.9,3670.3,3.6598]
[1754337585248,0.54491,3670.7,3670.5,1.0425]
[1754337585455,0.2915,3670.6,3670.5,1.0425]
[1754337585654,1.0011,3670.7,3670.5,1.0425]
[1754337585854,0.54488,3670.9,3670.7,1.0425]
[1754337586053,1.0605,3670.8,3670.7,1.0425]
[1754337586249,1.51896998,3671.0,3670.8,1.0425]
[1754337586450,1.60536,3671.0,3670.9,0.452]
[1754337586650,2.57946998,3671.0,3670.9,0.452]
[1754337586954,1.60536,3671.0,3670.9,0.452]
[1754337587246,0.97410998,3671.1,3670.9,0.54486]
[1754337587247,1.51894998,3671.1,3670.9,0.54486]
[1754337587446,0.97410998,3671.1,3671.0,1.0425]
[1754337587652,0.97410998,3671.2,3671.1,1.0425]
[1754337588354,1.51891998,3671.3,3671.1,1.0425]
[1754337588546,1.43030998,3671.3,3671.1,0.452]
[1754337588747,1.43030998,3671.3,3670.7,3.2078]
[1754337588748,1.0605,3671.0,3670.9,0.753]
[1754337588955,0.97410998,3671.3,3671.2,0.452]
[1754337588956,1.28690998,3671.3,3671.2,0.452]
[1754337589151,0.54482,3671.2,3671.1,3.2078]
[1754337589354,0.97410998,3671.4,3671.1,3.2078]
[1754337589553,1.51890998,3671.4,3671.1,3.2078]
[1754337589754,1.26560998,3671.4,3671.2,1.0425]
[1754337589957,1.26560998,3671.4,3671.1,3.2078]
[1754337589958,0.97410998,3671.5,3671.4,1.13529]
[1754337590152,0.97410998,3671.6,3671.5,1.0425]
[1754337590354,1.51885998,3671.7,3671.5,0.5905]
[1754337590662,0.97410998,3671.7,3671.6,1.0425]
[1754337591150,1.57840998,3671.7,3671.6,1.0425]
[1754337591350,2.03460998,3671.7,3671.6,1.0425]
[1754337591661,1.57840998,3671.7,3671.6,1.0425]
[1754337592060,2.03460998,3671.7,3671.6,1.0425]
[1754337592262,0.97410998,3671.8,3671.5,3.75257]
[1754337592456,0.97410998,3671.8,3671.7,1.0425]
[1754337592660,0.97410998,3671.8,3671.6,1.58725]
[1754337592852,1.83163998,3671.8,3671.6,0.2895]
[1754337593057,1.51883998,3671.8,3671.7,0.452]
[1754337593466,0.96982602,3671.8,3671.7,1.0425]
[1754337594062,0.96982602,3671.8,3671.7,1.58724]
[1754337594257,0.96982602,3671.9,3671.8,1.0425]
[1754337595064,0.54473,3671.8,3671.5,4.20457]
[1754337595262,0.96982602,3671.8,3671.3,0.5905]
[1754337595455,0.54483,3671.2,3670.6,0.753]
[1754337595661,1.0116,3671.2,3670.6,0.753]
[1754337595861,0.438,3670.6,3670.5,3.2078]
[1754337596359,1.55647,3670.9,3670.6,1.0636]
[1754337596556,0.438,3670.9,3670.7,1.0636]
[1754337596761,1.11848,3670.8,3670.7,1.0636]
[1754337596969,1.55651,3670.6,3670.5,3.2078]
[1754337597266,0.54494,3670.4,3670.0,4.81639]
[1754337597468,1.0116,3670.2,3670.1,0.4548]
[1754337597769,0.5449,3670.7,3670.2,0.54497]
[1754337598156,1.0116,3670.6,3670.3,0.54494]
[1754337598363,1.0116,3670.6,3670.2,0.6088]
[1754337598568,1.0116,3670.5,3670.3,0.7515]
[1754337598761,1.36228,3670.6,3669.7,0.85713]
[1754337599063,0.721,3669.9,3669.8,1.0636]
[1754337599260,0.721,3669.9,3668.4,1.94669904]
[1754337599261,1.0116,3669.3,3669.0,0.85723]
[1754337599466,0.54509,3669.4,3669.0,1.0636]
[1754337599761,0.6725649,3669.9,3669.7,0.54503]
[1754337599962,1.0116,3670.0,3669.5,0.4548]
[1754337600162,1.0116,3670.0,3669.9,1.0636]
[1754337600368,19.265,3670.5,3669.9,1.0636]
[1754337600559,0.67278756,3670.4,3669.9,1.0636]
[1754337600755,1.68438756,3670.4,3669.8,1.0636]
[1754337600961,1.0116,3669.9,3669.7,3.2078]
[1754337601167,1.0116,3669.8,3669.7,3.2078]
[1754337601370,1.0116,3669.7,3669.1,1.0636]
[1754337601863,0.54504,3669.8,3669.4,1.31197]
[1754337602168,0.2906,3670.4,3669.8,0.6088]
[1754337602566,0.721,3670.0,3669.8,0.6088]
[1754337602763,1.0116,3670.6,3670.2,0.54496]
[1754337603067,1.0116,3671.1,3670.9,0.54485]
[1754337603266,1.0116,3671.1,3671.0,3.5199]
[1754337603471,1.68511008,3671.2,3671.0,4.81624]
[1754337603769,1.0116,3671.1,3671.0,3.6626]
[1754337604168,1.0116,3671.1,3671.0,3.2078]
[1754337604470,0.283,3670.9,3670.0,0.4548]
[1754337604667,1.11855,3670.4,3670.1,0.2967]
[1754337604969,0.283,3670.3,3670.1,0.2967]
[1754337605170,0.283,3670.2,3670.1,0.2967]
[1754337605665,0.283,3670.2,3669.6,0.3121]
[1754337605666,0.5736,3670.1,3669.4,5.15449904]
[1754337605866,0.283,3669.6,3669.4,3.5045]
[1754337606067,0.283,3669.5,3669.4,3.5045]
[1754337606266,0.2906,3669.3,3669.0,2.24339904]
[1754337606466,0.5736,3669.2,3669.0,0.2967]
[1754337606659,1.11874,3669.0,3668.9,1.94669904]
[1754337606863,0.5736,3668.9,3668.8,1.94669904]
[1754337607162,1.11877,3668.8,3668.5,0.2967]
[1754337607363,0.8358,3668.7,3668.5,0.2967]
[1754337607564,0.283,3668.6,3668.5,0.2967]
[1754337607964,0.54517,3668.9,3668.6,1.3121]
[1754337608162,3.4984,3669.2,3668.6,0.3121]
[1754337608358,0.54513,3669.1,3668.9,0.7515]
[1754337608568,0.54513,3669.1,3669.0,0.2967]
[1754337608770,0.82813,3669.1,3669.0,0.2967]
[1754337609066,3.2078,3669.2,3669.0,0.54514]
[1754337609262,0.283,3669.5,3669.3,0.7669]
[1754337609468,3.75287,3669.6,3668.9,0.3121]
[1754337609469,0.82809,3669.4,3668.9,0.3121]
[1754337609768,0.82813,3669.2,3669.0,0.7515]
[1754337609958,0.283,3669.1,3669.0,0.4548]
[1754337610370,0.283,3669.1,3669.0,0.7669]
[1754337610668,0.283,3669.1,3669.0,1.0636]
[1754337610869,0.82813,3669.1,3669.0,0.7515]
[1754337611371,19.8231,3669.4,3668.8,1.0636]
[1754337611667,0.2906,3669.3,3669.1,0.2967]
[1754337611864,0.82813,3669.2,3669.1,0.2967]
[1754337612263,0.283,3669.2,3669.1,0.2967]
[1754337612461,0.54508,3669.5,3669.3,1.0636]
[1754337612660,0.54508,3669.5,3669.2,0.54511]
[1754337612661,20.09908,3669.5,3669.4,0.7515]
[1754337612970,0.82812,3669.2,3669.0,1.0636]
[1754337613163,0.82812,3669.2,3669.1,0.7515]
[1754337613469,0.82812,3669.2,3669.1,0.2967]
[1754337613669,0.82812,3669.2,3668.4,1.94669904]
[1754337613670,0.54522,3668.5,3668.3,3.6626]
[1754337613971,0.283,3668.4,3668.3,4.2714]
[1754337614162,1.11878,3668.8,3668.4,0.54523]
[1754337614363,0.283,3668.7,3668.5,0.54521]
[1754337614563,0.283,3668.7,3668.6,0.2967]
[1754337614763,0.283,3668.7,3668.6,1.0636]
[1754337614965,3.2078,3669.2,3669.0,0.54513]
[1754337615169,3.2078,3669.2,3669.1,1.60873]
[1754337615763,3.2078,3669.2,3669.1,1.0636]
[1754337616158,19.265,3669.3,3669.2,0.54511]
[1754337616362,42.7168,3669.8,3669.7,1.0636]
[1754337616569,42.4338,3669.8,3669.7,1.0636]
[1754337616963,42.7168,3669.8,3669.7,1.0636]
[1754337617269,42.7168,3669.8,3669.7,0.7515]
[1754337617569,42.7168,3669.8,3669.7,0.2967]
[1754337618359,42.4338,3669.8,3669.1,4.20772]
[1754337618563,0.283,3669.6,3669.1,4.20772]
[1754337618764,0.283,3669.6,3669.1,3.6626]
[1754337618765,0.283,3669.2,3669.1,3.6626]
[1754337618968,0.283,3669.2,3669.1,3.9593]
[1754337619667,0.283,3669.2,3669.1,4.2714]
[1754337620368,0.54505,3669.7,3669.1,3.2078]
[1754337620566,0.54505,3669.7,3669.2,1.0636]
[1754337620773,0.54505,3669.7,3669.5,0.54506]
[1754337620961,0.82805,3669.7,3669.6,0.7515]
[1754337621163,0.283,3669.7,3669.6,1.0636]
[1754337621363,19.246,3669.9,3669.4,0.7515]
[1754337621562,0.283,3669.8,3669.6,0.7669]
[1754337621775,0.283,3669.8,3669.7,1.0636]
[1754337622075,0.82803,3669.8,3669.7,1.0636]
[1754337622270,19.246,3669.9,3669.3,0.54509]
[1754337622574,3.2078,3670.3,3669.3,1.36276]
[1754337622869,19.237,3670.2,3669.7,1.0636]
[1754337623066,19.237,3670.2,3669.8,1.0636]
[1754337623266,0.82801,3669.9,3669.8,0.2967]
[1754337623471,0.82806,3669.6,3669.5,0.2967]
[1754337623780,0.82811,3669.3,3669.2,0.7515]
[1754337624071,0.82811,3669.3,3669.2,1.0636]
[1754337624272,0.283,3669.3,3669.2,1.0636]
[1754337624464,0.283,3669.3,3669.2,0.2967]
[1754337626772,0.283,3669.3,3669.2,0.7335]
[1754337627476,19.78206,3669.6,3669.1,0.3011]
[1754337627675,1.65899,3669.8,3669.2,0.725]
[1754337627876,0.54511,3669.3,3669.1,0.54512]
[1754337628079,0.54509,3669.4,3669.2,0.54511]
[1754337628277,4.04928,3669.5,3669.3,0.3011]
[1754337628482,0.54506,3669.6,3669.5,1.0261]
[1754337629171,0.84146,3669.6,3669.5,0.725]